bitfinex/quotes_BTCUSD_20260215
["timestamp","ask_amount","ask_price","bid_price","bid_amount"]
[1771114151478,1e-08,69820.0,69819.0,0.07161374]
[1771114152106,4e-05,69822.0,69820.0,0.07161252]
[1771114152339,4e-05,69822.0,69821.0,0.07161169]
[1771114152730,4e-05,69822.0,69820.0,0.07161252]
[1771114154053,0.00504,69822.0,69821.0,0.07161169]
[1771114154843,0.00488669,69822.0,69821.0,0.07161169]
[1771114155388,0.00044,69824.0,69821.0,0.07161169]
[1771114155584,0.002,69822.0,69821.0,0.07161169]
[1771114156002,0.00044,69824.0,69823.0,0.09482562]
[1771114156444,0.00044,69824.0,69823.0,0.07160964]
[1771114157522,0.0004,69827.0,69823.0,0.07160964]
[1771114157701,0.0004,69827.0,69821.0,0.09482718]
[1771114157905,0.0004,69827.0,69821.0,0.02321598]
[1771114158104,1e-08,69826.0,69825.0,0.07160759]
[1771114160838,0.00016,69830.0,69822.0,0.28643957]
[1771114160839,0.0004,69833.0,69828.0,0.02321598]
[1771114161124,0.0004,69833.0,69830.0,0.07160153]
[1771114161524,0.0004,69833.0,69829.0,0.07160319]
[1771114161972,0.07164058,69832.0,69825.0,0.07160675]
[1771114162193,0.07164058,69832.0,69826.0,0.07160652]
[1771114162568,4e-05,69832.0,69826.0,0.07160652]
[1771114162974,4e-05,69832.0,69824.0,0.05198003]
[1771114163190,4e-05,69828.0,69824.0,0.05198003]
[1771114163392,4e-05,69828.0,69826.0,0.07160652]
[1771114164729,4e-05,69828.0,69825.0,0.07160747]
[1771114165054,0.07164464,69828.0,69820.0,0.02337598]
[1771114165260,0.07160565,69827.0,69820.0,0.07177234]
[1771114165504,0.07364489,69828.0,69826.0,0.0002]
[1771114165659,4e-05,69828.0,69826.0,0.0002]
[1771114165862,0.00104,69828.0,69826.0,0.0002]
[1771114166269,4e-05,69828.0,69826.0,0.0002]
[1771114167138,0.0716447,69828.0,69826.0,0.0002]
[1771114168133,0.0886447,69828.0,69826.0,0.0002]
[1771114168339,0.0716447,69828.0,69826.0,0.0002]
[1771114168568,0.07160759,69825.0,69820.0,0.00016]
[1771114168693,0.10323505,69825.0,69820.0,0.00016]
[1771114168896,0.07164515,69828.0,69821.0,0.07161131]
[1771114169160,0.07176455,69828.0,69821.0,0.07161131]
[1771114169362,0.08876455,69828.0,69821.0,0.07161131]
[1771114169566,0.0171594,69828.0,69827.0,0.07160553]
[1771114169928,0.00044,69832.0,69828.0,0.07160364]
[1771114170134,0.00044,69832.0,69826.0,0.07160641]
[1771114170746,0.00044,69832.0,69827.0,0.07160517]
[1771114171944,0.00144,69832.0,69827.0,0.07160361]
[1771114172207,0.00044,69832.0,69827.0,0.07160361]
[1771114172628,0.00144,69832.0,69827.0,0.07160361]
[1771114174081,0.00044,69832.0,69827.0,0.07160361]
[1771114174282,0.00044,69832.0,69827.0,0.07360361]
[1771114174582,0.00044,69832.0,69827.0,0.07160361]
[1771114175004,0.00044,69832.0,69827.0,0.07260361]
[1771114176625,0.03162746,69831.0,69827.0,0.001]
[1771114176823,0.03162746,69831.0,69819.0,0.0002]
[1771114177204,0.07160638,69827.0,69819.0,0.07181302]
[1771114177427,0.0711067,69826.0,69819.0,0.07181302]
[1771114178252,4e-05,69822.0,69819.0,0.07181302]
[1771114178471,4e-05,69822.0,69820.0,0.07173269]
[1771114178945,0.07107342,69826.0,69820.0,0.07173269]
[1771114179141,0.07107342,69826.0,69820.0,0.00012]
[1771114179142,0.00015332,69825.0,69820.0,0.00012]
[1771114179364,0.0709201,69826.0,69820.0,0.00012]
[1771114180584,0.0709201,69826.0,69820.0,0.00032]
[1771114183161,4e-05,69826.0,69820.0,0.00032]
[1771114183361,4e-05,69826.0,69817.0,0.0002]
[1771114183362,0.07161037,69823.0,69817.0,0.0002]
[1771114183592,0.02450366,69821.0,69817.0,0.0002]
[1771114183763,0.03197295,69820.0,69817.0,0.0002]
[1771114184836,0.03197295,69820.0,69815.0,0.34304]
[1771114185007,0.03197295,69819.0,69815.0,0.34304]
[1771114185208,0.03197295,69819.0,69816.0,0.07161677]
[1771114185409,0.02450366,69820.0,69816.0,0.07161677]
[1771114185909,0.07160997,69823.0,69816.0,0.07161677]
[1771114186707,0.07130332,69823.0,69816.0,0.07161677]
[1771114187093,0.009,69819.0,69818.0,0.0716147]
[1771114187373,0.05647661,69824.0,69818.0,0.0716147]
[1771114187720,0.03197295,69822.0,69818.0,0.0716147]
[1771114188065,0.004,69819.0,69818.0,0.0716147]
[1771114188679,0.03197295,69822.0,69817.0,0.0002]
[1771114188882,0.02450366,69822.0,69817.0,0.0002]
[1771114189083,0.03197295,69821.0,69817.0,0.0002]
[1771114189785,0.03197295,69821.0,69818.0,0.07161476]
[1771114191340,0.03197295,69821.0,69817.0,0.0002]
[1771114192025,0.03197295,69821.0,69818.0,0.07161476]
[1771114192370,0.03197295,69821.0,69819.0,0.07161371]
[1771114192740,0.03197295,69821.0,69817.0,0.0002]
[1771114193098,0.03181963,69821.0,69818.0,0.0716138]
[1771114193303,4e-05,69820.0,69818.0,0.0715738]
[1771114193505,4e-05,69820.0,69817.0,0.07181487]
[1771114193744,4e-05,69820.0,69817.0,0.0072]
[1771114194146,4e-05,69820.0,69817.0,0.0002]
[1771114194349,4e-05,69820.0,69818.0,0.07861476]
[1771114194549,4e-05,69820.0,69818.0,0.07161476]
[1771114195372,4e-05,69820.0,69817.0,0.07281395]
[1771114195588,4e-05,69820.0,69818.0,0.07161378]
[1771114196016,4e-05,69820.0,69819.0,0.07161374]
[1771114197284,4e-05,69820.0,69819.0,0.07181374]
[1771114198313,4e-05,69820.0,69817.0,0.0002]
[1771114198444,4e-05,69820.0,69810.0,0.34336]
[1771114198445,0.02450366,69816.0,69810.0,0.34336]
[1771114198651,0.05647661,69816.0,69810.0,0.34336]
[1771114198878,0.03197295,69814.0,69810.0,0.34336]
[1771114199269,0.03197295,69814.0,69808.0,4e-05]
[1771114199472,0.07161374,69819.0,69803.0,0.07182958]
[1771114199684,0.02450366,69809.0,69803.0,0.0002]
[1771114200343,0.09612789,69809.0,69803.0,0.0002]
[1771114200523,0.09612789,69809.0,69803.0,0.0012]
[1771114200724,0.09612789,69809.0,69803.0,0.0002]
[1771114201268,0.09612789,69809.0,69804.0,0.07162913]
[1771114201269,0.02450366,69809.0,69804.0,0.07162913]
[1771114201486,0.02450366,69809.0,69803.0,0.0002]
[1771114201966,0.03197295,69812.0,69800.0,0.00012]
[1771114201967,0.02450366,69803.0,69800.0,0.00012]
[1771114202166,0.07162529,69808.0,69801.0,0.07163213]
[1771114202311,0.07162837,69805.0,69800.0,0.00012]
[1771114202547,0.02450366,69805.0,69803.0,0.004]
[1771114202713,0.07162335,69810.0,69803.0,0.004]
[1771114202990,0.07162335,69810.0,69802.0,0.07163038]
[1771114202991,0.07162355,69810.0,69802.0,0.07163038]
[1771114203366,0.07162355,69810.0,69801.0,0.0716303]
[1771114203610,0.07162355,69810.0,69802.0,0.07163118]
[1771114203819,0.07162794,69806.0,69803.0,0.002]
[1771114203979,0.02450366,69808.0,69801.0,0.07163194]
[1771114204183,0.02450366,69808.0,69800.0,0.00012]
[1771114204361,0.02450366,69808.0,69803.0,0.0002]
[1771114205295,0.02450366,69808.0,69803.0,0.07182987]
[1771114205537,0.01747679,69808.0,69803.0,0.07182987]
[1771114205866,0.07161589,69817.0,69804.0,0.02334731]
[1771114206058,0.07161589,69817.0,69808.0,0.07162471]
[1771114206059,0.07161765,69816.0,69808.0,0.07162471]
[1771114206261,0.07161569,69818.0,69808.0,0.07162471]
[1771114206457,0.07161476,69818.0,69810.0,0.07162239]
[1771114206658,0.00026597,69820.0,69815.0,0.07161692]
[1771114206894,0.00026597,69820.0,69813.0,0.07161926]
[1771114207108,0.00026597,69820.0,69814.0,0.07161834]
[1771114207357,0.07161543,69818.0,69810.0,0.07162239]
[1771114207524,0.07161604,69817.0,69810.0,0.07162239]
[1771114208156,0.07161472,69819.0,69808.0,0.018]
[1771114208157,4e-05,69812.0,69808.0,0.018]
[1771114208799,4e-05,69812.0,69806.0,0.07162632]
[1771114209017,4e-05,69812.0,69807.0,0.0716258]
[1771114209250,4e-05,69812.0,69804.0,0.07162913]
[1771114209452,4e-05,69812.0,69811.0,0.07162195]
[1771114209646,4e-05,69814.0,69813.0,0.07161989]
[1771114211880,4e-05,69814.0,69813.0,0.09961989]
[1771114212305,4e-05,69814.0,69813.0,0.07161989]
[1771114212509,4e-05,69814.0,69813.0,0.09861989]
[1771114212727,4e-05,69814.0,69813.0,0.07161989]
[1771114213080,4e-05,69814.0,69813.0,0.09961989]
[1771114215816,4e-05,69814.0,69813.0,0.07161989]
[1771114216036,4e-05,69818.0,69810.0,0.07182195]
[1771114216243,0.00026597,69820.0,69816.0,0.07161595]
[1771114216681,0.00056,69830.0,69821.0,0.28644495]
[1771114216892,0.00056,69830.0,69824.0,0.07160783]
[1771114217107,0.00056,69830.0,69825.0,0.07160759]
[1771114217330,0.00044,69832.0,69826.0,0.03071296]
[1771114217546,0.07160631,69827.0,69821.0,0.00013077]
[1771114217753,0.02356672,69829.0,69821.0,0.00013077]
[1771114217961,0.02356672,69829.0,69824.0,0.0716084]
[1771114218170,0.02356672,69829.0,69823.0,0.07160942]
[1771114218397,0.07160278,69830.0,69823.0,0.07160942]
[1771114219028,0.07160278,69830.0,69822.0,0.07161066]
[1771114219451,0.0004,69824.0,69823.0,0.007]
[1771114219606,0.0004,69824.0,69822.0,0.07161066]
[1771114220973,0.0004,69824.0,69823.0,0.008]
[1771114221152,0.0004,69824.0,69822.0,0.07161066]
[1771114221566,0.0004,69824.0,69822.0,0.08161066]
[1771114221775,0.0004,69824.0,69821.0,0.00013077]
[1771114222222,0.0004,69824.0,69823.0,0.009]
[1771114222578,0.0004,69824.0,69821.0,0.00013077]
[1771114222802,0.0004,69824.0,69822.0,0.014]
[1771114223005,0.02356672,69823.0,69820.0,0.00016]
[1771114223232,0.02360672,69822.0,69820.0,0.00016]
[1771114223828,4e-05,69822.0,69820.0,0.00016]
[1771114225013,4e-05,69822.0,69820.0,0.00516]
[1771114225262,4e-05,69822.0,69820.0,0.00016]
[1771114225622,4e-05,69822.0,69820.0,0.00916]
[1771114225819,4e-05,69822.0,69820.0,0.00016]
[1771114227865,4e-05,69826.0,69820.0,0.071772]
[1771114228077,4e-05,69826.0,69821.0,0.07161169]
[1771114228284,4e-05,69826.0,69820.0,0.07177244]
[1771114230357,4e-05,69826.0,69821.0,0.004]
[1771114230581,4e-05,69826.0,69820.0,0.07177244]
[1771114230783,4e-05,69826.0,69820.0,0.07577244]
[1771114230988,4e-05,69826.0,69821.0,0.07161158]
[1771114231366,4e-05,69826.0,69821.0,0.07561158]
[1771114231591,4e-05,69826.0,69821.0,0.07161158]
[1771114232096,4e-05,69826.0,69822.0,0.07161005]
[1771114232280,4e-05,69826.0,69821.0,0.07161158]
[1771114233013,4e-05,69826.0,69820.0,0.2865678]
[1771114233225,4e-05,69826.0,69823.0,0.07160872]
[1771114233661,0.0004,69831.0,69826.0,0.07160622]
[1771114233866,0.0004,69831.0,69825.0,0.07160721]
[1771114234064,0.0004,69831.0,69826.0,0.07160645]
[1771114236467,0.0004,69831.0,69821.0,0.0002]
[1771114237394,0.07160416,69829.0,69821.0,0.0002]
[1771114237868,0.07160416,69829.0,69826.0,0.002]
[1771114238106,0.07160416,69829.0,69822.0,0.07161049]
[1771114239508,4e-05,69830.0,69821.0,0.0002]
[1771114239707,4e-05,69830.0,69823.0,0.07160871]
[1771114240938,0.0004,69829.0,69823.0,0.07160871]
[1771114241140,0.0004,69829.0,69823.0,0.07260871]
[1771114242149,0.0004,69829.0,69820.0,0.28644964]
[1771114242552,0.0004,69829.0,69824.0,0.0716077]
[1771114243215,0.00016,69830.0,69823.0,0.28643643]
[1771114243415,0.00016,69830.0,69827.0,0.0716046]
[1771114243570,0.00016,69830.0,69828.0,0.0716042]
[1771114243778,0.00016,69830.0,69829.0,0.07160348]
[1771114243976,0.0004,69833.0,69831.0,0.07160143]
[1771114244192,0.0004,69833.0,69829.0,0.07160292]
[1771114245013,0.0004,69833.0,69829.0,0.07960292]
[1771114245948,0.00058,69836.0,69829.0,0.008]
[1771114246151,0.00058,69836.0,69830.0,0.07160185]
[1771114246732,0.00058,69836.0,69824.0,4e-05]
[1771114246941,0.0715991,69834.0,69829.0,0.011]
[1771114247321,0.0715991,69834.0,69827.0,0.07160518]
[1771114247523,0.0715991,69834.0,69830.0,0.011]
[1771114247881,0.07159762,69835.0,69828.0,0.07160427]
[1771114248307,0.07159762,69835.0,69829.0,0.01]
[1771114248622,0.0004,69833.0,69830.0,0.0716018]
[1771114248757,0.0004,69833.0,69829.0,0.08160331]
[1771114249159,0.0004,69833.0,69829.0,0.01]
[1771114249363,0.0004,69833.0,69828.0,0.07160411]
[1771114249625,0.0004,69833.0,69827.0,0.07160491]
[1771114249828,0.0004,69833.0,69830.0,0.026]
[1771114250036,0.0004,69833.0,69828.0,0.07160446]
[1771114250156,0.0004,69833.0,69829.0,0.033]
[1771114250580,0.0004,69833.0,69828.0,0.07160446]
[1771114251365,0.0004,69833.0,69829.0,0.033]
[1771114253251,4e-05,69830.0,69828.0,0.07156446]
[1771114253417,4e-05,69830.0,69828.0,0.12156446]
[1771114253628,4e-05,69830.0,69828.0,0.07156446]
[1771114253993,4e-05,69830.0,69829.0,0.05]
[1771114254194,4e-05,69830.0,69828.0,0.07156446]
[1771114254598,4e-05,69830.0,69828.0,0.12156446]
[1771114254839,4e-05,69830.0,69829.0,0.07160348]
[1771114255167,4e-05,69830.0,69829.0,0.12160348]
[1771114256912,4e-05,69832.0,69829.0,0.07160348]
[1771114257085,0.0004,69837.0,69835.0,0.07159733]
[1771114257288,0.0004,69837.0,69833.0,0.28639478]
[1771114257289,0.0004,69839.0,69838.0,0.07159426]
[1771114257892,0.0004,69843.0,69834.0,0.07159836]
[1771114258105,0.00047605,69842.0,69839.0,0.07159313]
[1771114258603,0.00047605,69842.0,69838.0,0.07159395]
[1771114258928,0.07159217,69841.0,69833.0,0.07159864]
[1771114259086,0.07159217,69841.0,69834.0,0.05]
[1771114259490,0.07159223,69840.0,69834.0,0.04819998]
[1771114259711,0.02491267,69842.0,69834.0,0.04819998]
[1771114259916,0.02491267,69842.0,69835.0,0.07159669]
[1771114259917,0.00047605,69842.0,69835.0,0.07159669]
[1771114260526,0.00047605,69842.0,69839.0,0.05]
[1771114260729,0.00047605,69842.0,69830.0,0.45614788]
[1771114260730,0.02443662,69838.0,69830.0,0.00016]
[1771114260971,0.07159849,69834.0,69830.0,0.00012]
[1771114261276,0.03250487,69840.0,69826.0,0.0002]
[1771114261277,0.07160105,69832.0,69826.0,0.0002]
[1771114261481,0.07161164,69822.0,69820.0,0.00012]
[1771114261614,0.02443662,69823.0,69820.0,0.00012]
[1771114261809,0.02443662,69823.0,69815.0,0.07161777]
[1771114262034,0.07160771,69825.0,69814.0,0.0002]
[1771114262237,0.07160865,69824.0,69816.0,0.07161651]
[1771114262444,0.09604527,69824.0,69816.0,0.07161651]
[1771114262610,0.02443662,69824.0,69817.0,0.07161546]
[1771114262811,0.02443662,69824.0,69818.0,0.07161458]
[1771114263131,0.02443662,69824.0,69822.0,0.0002]
[1771114263790,0.02443662,69824.0,69815.0,0.07181726]
[1771114263791,0.00015332,69823.0,69815.0,0.0002]
[1771114263956,0.02443662,69821.0,69815.0,0.07181767]
[1771114264601,0.02443662,69821.0,69815.0,0.0002]
[1771114264822,0.00015332,69823.0,69819.0,0.07161283]
[1771114265168,0.00015332,69823.0,69818.0,0.0716145]
[1771114265373,0.00015332,69823.0,69819.0,0.07161348]
[1771114265994,0.00015332,69823.0,69818.0,0.0716145]
[1771114266615,0.02458994,69823.0,69819.0,0.002]
[1771114266825,0.07161099,69822.0,69815.0,0.07181685]
[1771114267230,0.09619995,69823.0,69818.0,0.002]
[1771114267401,0.09619995,69823.0,69815.0,0.07181685]
[1771114267767,0.03058994,69823.0,69815.0,0.0002]
[1771114268098,0.02458994,69823.0,69819.0,0.07161369]
[1771114268307,0.02458994,69823.0,69819.0,0.07149369]
[1771114268517,4e-05,69826.0,69819.0,0.03255027]
[1771114268649,4e-05,69826.0,69821.0,0.07161169]
[1771114268852,0.02443662,69829.0,69821.0,0.07161169]
[1771114268853,0.02436329,69829.0,69821.0,0.07161169]
[1771114269051,0.09596767,69829.0,69821.0,0.07161134]
[1771114269298,0.006,69823.0,69820.0,0.07161248]
[1771114269475,0.006,69823.0,69815.0,0.0002]
[1771114269679,0.0716088,69824.0,69815.0,0.0002]
[1771114269874,0.0716088,69824.0,69816.0,0.071616]
[1771114270196,0.0716088,69824.0,69812.0,0.28672133]
[1771114270376,0.0716088,69824.0,69816.0,0.07161598]
[1771114270596,0.006,69823.0,69816.0,0.07161598]
[1771114270782,0.0716088,69824.0,69819.0,0.0002]
[1771114270987,0.02443662,69824.0,69819.0,0.0002]
[1771114271169,0.02943662,69824.0,69819.0,0.0002]
[1771114271370,0.10104538,69824.0,69819.0,0.0002]
[1771114272362,0.09573861,69824.0,69819.0,0.0002]
[1771114272745,0.005,69823.0,69819.0,0.0002]
[1771114272954,0.09573861,69824.0,69819.0,0.0002]
[1771114273251,0.10073861,69824.0,69819.0,0.0002]
[1771114273431,0.09573861,69824.0,69819.0,0.0002]
[1771114275190,0.03293328,69828.0,69812.0,0.00034597]
[1771114275471,0.09465239,69819.0,69812.0,0.00034597]
[1771114275629,0.09449894,69819.0,69812.0,0.07196613]
[1771114275824,0.02303853,69819.0,69813.0,0.07161988]
[1771114276025,0.09465249,69819.0,69812.0,0.00034597]
[1771114276248,0.09465249,69819.0,69812.0,0.07196678]
[1771114278369,0.0716149,69818.0,69812.0,0.00034597]
[1771114280061,0.09465242,69819.0,69812.0,0.0719668]
[1771114281096,0.07161487,69818.0,69812.0,0.0719668]
[1771114281432,0.09465255,69819.0,69812.0,0.0719668]
[1771114282348,0.07161481,69818.0,69812.0,0.00034597]
[1771114282820,0.07161481,69818.0,69810.0,0.07198114]
[1771114282821,0.02303853,69816.0,69810.0,0.07162296]
[1771114283205,0.02303853,69816.0,69808.0,0.00024]
[1771114283416,4e-05,69814.0,69811.0,0.0716213]
[1771114286987,0.02303853,69813.0,69808.0,0.00024]
[1771114287152,0.0946591,69813.0,69808.0,0.00024]
[1771114287374,0.02303853,69812.0,69808.0,0.00024]
[1771114287945,0.07165947,69814.0,69808.0,0.00024]
[1771114288424,0.07162059,69813.0,69808.0,0.00024]
[1771114288610,0.09465912,69813.0,69808.0,0.00024]
[1771114289237,0.02303853,69812.0,69808.0,0.00024]
[1771114289656,0.02303853,69812.0,69808.0,0.00224]
[1771114290322,0.02303853,69812.0,69803.0,0.07182936]
[1771114290323,0.00012,69810.0,69798.0,0.0001112]
[1771114290494,0.07163139,69802.0,69798.0,0.00024192]
[1771114291668,0.07163035,69803.0,69798.0,0.00024192]
[1771114291869,0.07162944,69804.0,69798.0,0.00024192]
[1771114292072,0.07162944,69804.0,69798.0,0.00124192]
[1771114292693,0.07162944,69804.0,69798.0,0.00024192]
[1771114293099,0.07163091,69803.0,69798.0,0.00624192]
[1771114293308,0.07163091,69803.0,69793.0,0.32795705]
[1771114293309,0.02303853,69802.0,69793.0,0.32795705]
[1771114293507,0.07163091,69803.0,69793.0,0.32795705]
[1771114293716,0.07163091,69803.0,69794.0,0.07163749]
[1771114293918,0.07163151,69802.0,69795.0,0.07163834]
[1771114294569,0.07163362,69800.0,69793.0,0.32795705]
[1771114294772,0.07163768,69796.0,69792.0,0.0001511]
[1771114294931,0.07163602,69798.0,69792.0,0.0001511]
[1771114295141,0.07163668,69797.0,69792.0,0.0001511]
[1771114295341,0.07163668,69797.0,69795.0,0.012]
[1771114295680,0.07163602,69798.0,69792.0,0.0001511]
[1771114295887,0.07163426,69799.0,69792.0,0.0221511]
[1771114296065,0.07163364,69800.0,69792.0,0.0221511]
[1771114296066,0.0716366,69797.0,69792.0,0.0001511]
[1771114296594,0.28652748,69802.0,69786.0,0.09172]
[1771114296595,0.02303853,69796.0,69786.0,0.09172]
[1771114296765,0.43117513,69802.0,69785.0,0.34308]
[1771114296766,0.07164626,69788.0,69785.0,4e-05]
[1771114296970,0.07165274,69781.0,69780.0,0.00012]
[1771114297167,0.34316,69800.0,69775.0,0.0001511]
[1771114297168,0.28659043,69788.0,69775.0,0.0001511]
[1771114297367,0.07165139,69783.0,69779.0,0.0002]
[1771114297774,0.0716499,69784.0,69779.0,0.0002]
[1771114298155,0.07164911,69785.0,69779.0,0.0002]
[1771114298806,0.07164911,69785.0,69779.0,0.0052]
[1771114299176,0.0716509,69783.0,69779.0,0.0002]
[1771114299556,0.09469126,69782.0,69779.0,0.0062]
[1771114299886,0.02303853,69779.0,69770.0,0.00012]
[1771114300089,0.07165914,69775.0,69770.0,0.00012]
[1771114300617,0.28661808,69780.0,69772.0,0.07166169]
[1771114300618,0.07165398,69780.0,69772.0,0.07166169]
[1771114301192,0.09548939,69781.0,69771.0,0.07166296]
[1771114301628,0.002,69775.0,69771.0,0.07166296]
[1771114301831,0.002,69775.0,69770.0,0.00012]
[1771114302008,0.07165574,69779.0,69771.0,0.07166268]
[1771114302213,0.07165433,69780.0,69771.0,0.004]
[1771114302433,0.07165674,69778.0,69770.0,0.00012]
[1771114303040,0.07166301,69771.0,69770.0,0.00012]
[1771114303307,0.02467461,69774.0,69760.0,0.00012]
[1771114303530,0.07166999,69765.0,69760.0,0.00055547]
[1771114303739,0.07167328,69761.0,69760.0,0.00055547]
[1771114303938,0.07167074,69764.0,69760.0,0.00055547]
[1771114304550,0.09634535,69764.0,69763.0,0.0002]
[1771114304709,0.37466136,69765.0,69750.0,0.07180429]
[1771114304911,0.07167586,69759.0,69756.0,0.0002]
[1771114305122,0.07167936,69756.0,69750.0,0.00012]
[1771114306732,0.07167775,69757.0,69750.0,0.00012]
[1771114307269,0.02467461,69758.0,69752.0,0.07168204]
[1771114307428,0.02467461,69758.0,69752.0,0.07168236]
[1771114307637,0.02467461,69758.0,69753.0,0.07168106]
[1771114307842,0.00012,69760.0,69753.0,0.07168106]
[1771114308053,0.00012,69760.0,69753.0,0.07168048]
[1771114308253,0.00043601,69765.0,69750.0,0.43129513]
[1771114308463,0.07167095,69764.0,69753.0,0.02415238]
[1771114308675,0.07167095,69764.0,69757.0,0.0716772]
[1771114308869,0.07210719,69765.0,69753.0,0.02415238]
[1771114309124,0.07210719,69765.0,69757.0,0.07167685]
[1771114309725,0.07210719,69765.0,69758.0,0.0716763]
[1771114310104,0.01,69760.0,69758.0,0.0716763]
[1771114310466,0.07210719,69765.0,69758.0,0.0716763]
[1771114310609,0.00643601,69765.0,69761.0,0.07167262]
[1771114310810,0.00643601,69765.0,69763.0,0.07167032]
[1771114311018,0.00043601,69765.0,69762.0,0.07167203]
[1771114311221,0.00012,69770.0,69758.0,0.03183599]
[1771114311439,0.00012,69770.0,69766.0,0.07166757]
[1771114311948,0.0005,69767.0,69766.0,0.07166757]
[1771114312128,0.0005,69767.0,69763.0,0.0716709]
[1771114312329,0.0005,69767.0,69764.0,0.07166935]
[1771114312535,0.0005,69767.0,69763.0,0.09582328]
[1771114312536,0.0005,69767.0,69766.0,0.07166814]
[1771114312908,0.00012,69770.0,69764.0,0.0716702]
[1771114313080,0.00012,69770.0,69760.0,0.43117513]
[1771114313081,0.00012,69770.0,69768.0,0.0716654]
[1771114313289,0.00012,69770.0,69767.0,0.07166699]
[1771114313664,4e-05,69768.0,69767.0,0.07142699]
[1771114318237,4e-05,69768.0,69766.0,0.07166739]
[1771114319436,4e-05,69768.0,69767.0,0.0002]
[1771114320270,4e-05,69768.0,69767.0,0.07186712]
[1771114320676,4e-05,69768.0,69767.0,0.0002]
[1771114321093,0.00012,69780.0,69779.0,0.07165479]
[1771114321299,0.41472632,69788.0,69775.0,0.02415238]
[1771114321628,0.07165278,69781.0,69775.0,0.02415238]
[1771114321833,0.07165106,69783.0,69770.0,0.00012]
[1771114321834,0.07165068,69783.0,69770.0,0.00012]
[1771114321949,0.07165866,69776.0,69770.0,0.00012]
[1771114322168,0.09633164,69777.0,69770.0,0.00012]
[1771114322370,0.07165703,69777.0,69770.0,0.00012]
[1771114323935,0.07165467,69780.0,69770.0,0.07178376]
[1771114324156,0.07165507,69779.0,69771.0,0.07166236]
[1771114324575,0.02467461,69782.0,69770.0,0.00012]
[1771114324714,0.07166047,69774.0,69770.0,0.00012]
[1771114325135,0.07165921,69775.0,69770.0,0.00012]
[1771114325375,0.07166111,69773.0,69770.0,0.00012]
[1771114325579,0.43117513,69780.0,69766.0,1e-08]
[1771114325894,0.02467461,69771.0,69760.0,0.00032]
[1771114326142,0.07166786,69767.0,69760.0,0.00045057]
[1771114326325,0.06490653,69764.0,69760.0,0.00045057]
[1771114326783,0.07166933,69765.0,69760.0,0.00045057]
[1771114327340,0.07166403,69770.0,69760.0,0.00045057]
[1771114327477,0.07167264,69762.0,69760.0,0.00045057]
[1771114327673,0.06490873,69762.0,69760.0,0.00045057]
[1771114327953,0.07167145,69763.0,69757.0,0.0002]
[1771114328145,0.00013067,69763.0,69757.0,0.0002]
[1771114328345,0.00013067,69763.0,69757.0,0.07187692]
[1771114328702,0.00013067,69763.0,69760.0,0.002]
[1771114330063,0.00013067,69763.0,69757.0,0.0002]
[1771114330261,0.00013067,69763.0,69758.0,0.07167634]
[1771114330462,0.00013067,69763.0,69758.0,0.02415238]
[1771114330908,0.00513067,69763.0,69758.0,0.09582869]
[1771114331088,0.00012,69770.0,69761.0,0.07167245]
[1771114331289,0.07166506,69769.0,69761.0,0.07167245]
[1771114331430,0.005,69763.0,69761.0,0.07167245]
[1771114331626,0.07166613,69768.0,69759.0,0.07167483]
[1771114331841,0.07166897,69766.0,69759.0,0.07167483]
[1771114332974,0.07166742,69767.0,69758.0,0.13166271]
[1771114333374,0.07166742,69767.0,69758.0,0.09982672]
[1771114333584,0.07166742,69767.0,69760.0,0.07167422]
[1771114333791,0.07166742,69767.0,69761.0,0.004]
[1771114334171,0.07166613,69768.0,69758.0,0.09582672]
[1771114334172,0.07166818,69766.0,69759.0,0.07167496]
[1771114334986,0.07166818,69766.0,69761.0,0.002]
[1771114335188,0.07166818,69766.0,69759.0,0.07187496]
[1771114335628,0.07166747,69767.0,69760.0,0.07167423]
[1771114336341,0.07166506,69769.0,69759.0,0.0022]
[1771114336525,0.07167097,69764.0,69759.0,0.0022]
[1771114336730,0.07167097,69764.0,69759.0,0.0002]
[1771114336930,0.07166947,69765.0,69759.0,0.0002]
[1771114337397,0.07166947,69765.0,69761.0,0.002]
[1771114337618,0.07167225,69762.0,69761.0,0.002]
[1771114337850,0.28670816,69758.0,69750.0,0.00036]
[1771114338079,0.07167851,69756.0,69750.0,0.00075601]
[1771114338285,0.07167976,69755.0,69750.0,0.00075601]
[1771114338567,0.06491631,69755.0,69750.0,0.00075601]
[1771114338994,0.07167876,69756.0,69750.0,0.00075601]
[1771114339252,0.07167405,69761.0,69750.0,0.0724396]
[1771114339441,0.07167493,69760.0,69751.0,0.07168356]
[1771114339921,0.07167354,69761.0,69752.0,0.07168053]
[1771114340218,0.07167354,69761.0,69750.0,0.43267397]
[1771114340219,0.0716744,69760.0,69753.0,0.0716815]
[1771114340425,0.006,69755.0,69752.0,0.07168221]
[1771114340570,0.07167551,69759.0,69753.0,0.07168149]
[1771114340768,0.07167461,69760.0,69753.0,0.07168149]
[1771114341189,0.07767354,69761.0,69751.0,0.07168327]
[1771114341190,0.07167354,69761.0,69752.0,0.07168222]
[1771114341570,0.031,69755.0,69752.0,0.07368222]
[1771114341769,0.07167522,69760.0,69752.0,0.07368222]
[1771114341770,0.07167522,69760.0,69752.0,0.07168222]
[1771114342303,0.10467522,69760.0,69753.0,0.003]
[1771114342510,0.07167578,69759.0,69753.0,0.003]
[1771114342879,0.07167578,69759.0,69753.0,0.0032]
[1771114343161,0.07167706,69758.0,69753.0,0.0032]
[1771114343336,0.07167706,69758.0,69753.0,0.0002]
[1771114343542,4e-05,69754.0,69753.0,0.00016]
[1771114344409,4e-05,69754.0,69753.0,0.00516]
[1771114344624,4e-05,69754.0,69753.0,0.00016]
[1771114344765,0.04504,69754.0,69753.0,0.00516]
[1771114348275,4e-05,69758.0,69754.0,0.02278651]
[1771114348423,4e-05,69760.0,69754.0,0.02278651]
[1771114348626,4e-05,69760.0,69757.0,0.07167645]
[1771114349937,0.027,69758.0,69757.0,0.07167645]
[1771114350134,0.00044,69760.0,69757.0,0.07167645]
[1771114350415,0.02744,69760.0,69757.0,0.07167645]
[1771114350613,0.00044,69760.0,69756.0,0.07167645]
[1771114351152,0.015,69758.0,69756.0,0.07167645]
[1771114351382,0.00044,69760.0,69756.0,0.07167645]
[1771114352385,0.00044,69760.0,69755.0,0.07167757]
[1771114352534,0.01544,69760.0,69755.0,0.07167757]
[1771114352741,0.01544,69760.0,69756.0,0.07167842]
[1771114352933,0.00044,69760.0,69756.0,0.07167842]
[1771114353187,0.01544,69760.0,69756.0,0.07167842]